fUSD/lending_fUSD_20240331
["ID","MTS","AMOUNT","RATE_DAILY","PERIOD"]
[321076598,1711881048875,-507.03,0.00041643,4]
[321076599,1711881048884,-500.0,0.00041643,4]
[321076600,1711881048894,-592.02,0.00041643,4]
[321076601,1711881048904,-500.0,0.00041643,4]
[321076602,1711881048914,-500.0,0.00041643,4]
[321076603,1711881048926,-500.0,0.00041643,4]
[321076604,1711881048936,-500.0,0.00041643,4]
[321076605,1711881048948,-1223.41,0.00041643,4]
[321076606,1711881048957,-500.0,0.00041643,4]
[321076607,1711881048966,-500.0,0.00041643,4]
[321076608,1711881048976,-500.0,0.00041643,4]
[321076609,1711881048985,-167.5594522,0.00041643,4]
[321076610,1711881048996,-780.34,0.00041643,4]
[321076611,1711881049007,-4907.52,0.00041643,4]
[321076612,1711881049017,-500.0,0.00041643,4]
[321076613,1711881049026,-1772.92,0.00041643,4]
[321076614,1711881049036,-1912.51,0.00041643,4]
[321076615,1711881049045,-500.0,0.00041643,4]
[321076616,1711881049055,-500.0,0.00041643,4]
[321076617,1711881049065,-9873.98,0.00041643,4]
[321076618,1711881049075,-500.0,0.00041643,4]
[321076619,1711881049085,-500.0,0.00041643,4]
[321076620,1711881049097,-500.0,0.00041643,4]
[321076621,1711881049107,-500.0,0.00041643,4]
[321076622,1711881049117,-500.0,0.00041643,4]
[321076623,1711881049128,-500.0,0.00041643,4]
[321076624,1711881049138,-500.0,0.00041643,4]
[321076625,1711881049148,-500.0,0.00041643,4]
[321076626,1711881049157,-500.0,0.00041643,4]
[321076627,1711881049168,-500.0,0.00041643,4]
[321076628,1711881049178,-579.81,0.00041643,4]
[321076629,1711881049188,-500.0,0.00041643,4]
[321076630,1711881049198,-2128.35,0.00041643,4]
[321076631,1711881049208,-500.0,0.00041643,4]
[321076632,1711881049217,-2978.2,0.00041643,4]
[321076633,1711881049227,-607.54,0.00041643,4]
[321076634,1711881049237,-1282.48,0.00041643,4]
[321076635,1711881049247,-500.0,0.00041643,4]
[321076636,1711881049257,-3141.01,0.00041643,4]
[321076637,1711881049267,-11051.63,0.00041643,4]
[321076638,1711881049277,-500.0,0.00041643,4]
[321076639,1711881049287,-1956.76,0.00041643,4]
[321076640,1711881049296,-500.0,0.00041643,4]
[321076641,1711881049306,-3339.26,0.00041643,4]
[321076642,1711881049316,-500.0,0.00041643,4]
[321076643,1711881049325,-500.0,0.00041643,4]
[321076644,1711881049335,-558.63,0.00041643,4]
[321076645,1711881049345,-500.0,0.00041643,4]
[321076646,1711881049355,-500.0,0.00041643,4]
[321076647,1711881049365,-17325.9,0.00041643,4]
[321076648,1711881049374,-500.0,0.00041643,4]
[321076649,1711881049384,-4916.1,0.00041643,4]
[321076650,1711881049393,-4178.8,0.00041643,4]
[321076651,1711881049403,-500.0,0.00041643,4]
[321076652,1711881049413,-500.0,0.00041643,4]
[321076653,1711881049422,-500.0,0.00041643,4]
[321076654,1711881049432,-11324.23,0.00041643,4]
[321076655,1711881049441,-500.0,0.00041643,4]
[321076656,1711881049451,-1894.7,0.00041643,4]
[321076657,1711881049460,-500.0,0.00041643,4]
[321076658,1711881049470,-500.0,0.00041643,4]
[321076659,1711881049479,-548.25,0.00041643,4]
[321076660,1711881049488,-4054.22,0.00041643,4]
[321076661,1711881049497,-500.0,0.00041643,4]
[321076662,1711881049507,-2402.47,0.00041643,4]
[321076663,1711881049516,-500.0,0.00041643,4]
[321076664,1711881049525,-500.0,0.00041643,4]
[321076665,1711881049535,-500.0,0.00041643,4]
[321076666,1711881049545,-500.0,0.00041643,4]
[321076667,1711881049554,-500.0,0.00041643,4]
[321076668,1711881049564,-344.73386272,0.00041643,4]
[321076669,1711881049573,-500.0,0.00041643,4]
[321076670,1711881049583,-4324.54,0.00041643,4]
[321076671,1711881049592,-2969.6,0.00041643,4]
[321076672,1711881049602,-10531.72,0.00041643,4]
[321076673,1711881049611,-2598.09,0.00041643,4]
[321076674,1711881049620,-604.67,0.00041643,4]
[321076675,1711881049629,-809.05,0.00041643,4]
[321076676,1711881049639,-500.0,0.00041643,4]
[321076677,1711881049648,-3926.55,0.00041643,4]
[321076678,1711881049658,-507.85,0.00041643,4]
[321076679,1711881049670,-13574.66,0.00041643,4]
[321076680,1711881049680,-11947.36,0.00041643,4]
[321076681,1711881049690,-274.53610639,0.00041643,4]
[321076682,1711881049701,-557.69,0.00041643,4]
[321076683,1711881049711,-3203.99,0.00041643,4]
[321076684,1711881049720,-500.0,0.00041643,4]
[321076685,1711881049730,-631.03,0.00041643,4]
[321076686,1711881049741,-500.0,0.00041643,4]
[321076687,1711881049752,-517.59166813,0.00041643,4]
[321076688,1711881049762,-4793.74,0.00041643,4]
[321076689,1711881049772,-500.0,0.00041643,4]
[321076690,1711881049781,-2836.85,0.00041643,4]
[321076691,1711881049791,-2194.76,0.00041643,4]
[321076692,1711881049801,-2299.28,0.00041643,4]
[321076693,1711881049811,-500.0,0.00041643,4]
[321076694,1711881049820,-5431.85,0.00041643,4]
[321076695,1711881049830,-2960.76,0.00041643,4]
[321076696,1711881049839,-500.0,0.00041643,4]
[321076697,1711881049849,-2430.06,0.00041643,4]
[321076698,1711881049858,-2520.98,0.00041643,4]
[321076699,1711881049868,-500.0,0.00041643,4]
[321076700,1711881049877,-500.0,0.00041643,4]
[321076701,1711881049887,-500.0,0.00041643,4]
[321076702,1711881049897,-500.0,0.00041643,4]
[321076703,1711881049906,-500.0,0.00041643,4]
[321076704,1711881049915,-1230.23,0.00041643,4]
[321076705,1711881049925,-2670.62,0.00041643,4]
[321076706,1711881049934,-4010.9,0.00041643,4]
[321076707,1711881049944,-2617.23,0.00041643,4]
[321076708,1711881049953,-5966.43,0.00041643,4]
[321076709,1711881049963,-500.0,0.00041643,4]
[321076710,1711881049972,-500.0,0.00041643,4]
[321076711,1711881049982,-2557.77,0.00041643,4]
[321076712,1711881049991,-18561.82,0.00041643,4]
[321076713,1711881050001,-4504.14,0.00041643,4]
[321076714,1711881050010,-3682.98,0.00041643,4]
[321076715,1711881050020,-500.0,0.00041643,4]
[321076716,1711881050029,-500.0,0.00041643,4]
[321076717,1711881050039,-500.0,0.00041643,4]
[321076718,1711881050049,-696.65,0.00041643,4]
[321076719,1711881050059,-1350.96,0.00041643,4]
[321076720,1711881050069,-612.38,0.00041643,4]
[321076721,1711881050078,-500.0,0.00041643,4]
[321076722,1711881050088,-612.95219996,0.00041643,4]
[321076723,1711881050097,-500.0,0.00041643,4]
[321076724,1711881050107,-758.56,0.00041643,4]
[321076725,1711881050117,-19042.8,0.00041643,4]
[321076726,1711881050126,-6317.96,0.00041643,4]
[321076727,1711881050136,-717.37,0.00041643,2]
[321076728,1711881050146,-503.88,0.00041643,4]
[321076729,1711881050155,-500.0,0.00041643,4]
[321076730,1711881050166,-500.0,0.00041643,4]
[321076731,1711881050175,-500.0,0.00041643,4]
[321076732,1711881050184,-1832.27,0.00041643,4]
[321076733,1711881050194,-2780.78,0.00041643,4]
[321076734,1711881050204,-500.0,0.00041643,4]
[321076735,1711881050213,-695.3,0.00041643,4]
[321076736,1711881050223,-500.0,0.00041643,4]
[321076737,1711881050232,-2212.1,0.00041643,4]
[321076738,1711881050241,-2229.57,0.00041643,4]
[321076739,1711881050251,-574.59,0.00041643,4]
[321076740,1711881050261,-21463.32,0.00041643,4]
[321076741,1711881050271,-500.0,0.00041643,4]
[321076742,1711881050280,-179.48,0.00041644,120]
[321076743,1711881050289,-183.90224563,0.00041656,2]
[321076744,1711881050300,-122386.39859825,0.00041695,3]
[321076745,1711881050310,-151.0,0.00041696,14]
[321076746,1711881050320,-151.0,0.00041696,14]
[321076747,1711881050329,-151.0,0.00041696,14]
[321076748,1711881050338,-151.0,0.00041696,14]
[321076749,1711881050348,-151.0,0.00041696,14]
[321076750,1711881050358,-151.0,0.00041696,14]
[321076751,1711881050368,-151.0,0.00041696,14]
[321076752,1711881050378,-151.0,0.00041696,14]
[321076753,1711881050388,-151.0,0.00041696,14]
[321076754,1711881050397,-711.790368,0.00041696,14]
[321076755,1711881050407,-711.790368,0.00041696,14]
[321076756,1711881050417,-711.790368,0.00041696,14]
[321076757,1711881050426,-711.790368,0.00041696,14]
[321076758,1711881050436,-711.790368,0.00041696,14]
[321076759,1711881050447,-711.790368,0.00041696,14]
[321076760,1711881050457,-151.0,0.00041696,7]
[321076761,1711881050466,-180.053944,0.00041696,7]
[321076762,1711881050476,-151.0,0.00041696,7]
[321076763,1711881050486,-151.0,0.00041696,7]
[321076764,1711881050495,-151.0,0.00041696,7]
[321076765,1711881050505,-151.585429,0.00041696,14]
[321076766,1711881050515,-169.106271,0.00041696,14]
[321076767,1711881050525,-275.436173,0.00041696,14]
[321076768,1711881050534,-275.436173,0.00041696,14]
[321076769,1711881050544,-275.436173,0.00041696,14]
[321076770,1711881050554,-151.0,0.00041696,14]
[321076771,1711881050564,-151.0,0.00041696,14]
[321076772,1711881050574,-151.0,0.00041696,14]
[321076773,1711881050583,-275.436173,0.00041696,14]
[321076774,1711881050594,-275.436173,0.00041696,14]
[321076775,1711881050603,-275.436173,0.00041696,14]
[321076776,1711881050614,-276.504913,0.00041696,14]
[321076777,1711881050623,-153.40942,0.00041696,14]
[321076778,1711881050634,-151.0,0.00041696,14]
[321076779,1711881050644,-151.0,0.00041696,14]
[321076780,1711881050653,-151.0,0.00041696,14]
[321076781,1711881050666,-643.682462,0.00041696,14]
[321076782,1711881050676,-643.682462,0.00041696,14]
[321076783,1711881050685,-643.682462,0.00041696,14]
[321076784,1711881050696,-643.682462,0.00041696,14]
[321076785,1711881050707,-643.682462,0.00041696,14]
[321076786,1711881050717,-643.682462,0.00041696,14]
[321076787,1711881050726,-2949.20688,0.00041696,14]
[321076788,1711881050736,-2949.20688,0.00041696,14]
[321076789,1711881050747,-2949.20688,0.00041696,14]
[321076790,1711881050757,-151.0,0.00041696,14]
[321076791,1711881050766,-151.0,0.00041696,14]
[321076792,1711881050776,-239.668057,0.00041696,14]
[321076793,1711881050786,-2949.20688,0.00041696,14]
[321076794,1711881050796,-2949.20688,0.00041696,14]
[321076795,1711881050806,-2949.20688,0.00041696,14]
[321076796,1711881050816,-196359.20749487,0.000417,7]
[321076797,1711881050825,-158.0,0.000417,2]
[321076798,1711881050835,-155.486925,0.000417,14]
[321076799,1711881050844,-151.0,0.000417,14]
[321076800,1711881050854,-151.0,0.000417,14]
[321076801,1711881050864,-151.0,0.000417,14]
[321076802,1711881050874,-151.0,0.000417,14]
[321076803,1711881050883,-153.67697,0.000417,14]
[321076804,1711881050893,-151.0,0.000417,14]
[321076805,1711881050902,-151.0,0.000417,14]
[321076806,1711881050912,-151.0,0.000417,14]
[321076807,1711881050922,-711.790368,0.000417,14]
[321076808,1711881050931,-711.790368,0.000417,14]
[321076809,1711881050941,-153.874779,0.000417,7]
[321076810,1711881050951,-275.436173,0.000417,14]
[321076811,1711881050961,-151.0,0.000417,14]
[321076812,1711881050971,-275.436173,0.000417,14]
[321076813,1711881050980,-151.0,0.000417,14]
[321076814,1711881050990,-643.682462,0.000417,14]
[321076815,1711881050999,-643.682462,0.000417,14]
[321076816,1711881051009,-2949.20688,0.000417,14]
[321076817,1711881051019,-2949.20688,0.000417,14]
[321076818,1711881051029,-410.35994302,0.00041718,2]
[321076819,1711881051038,-1168.69207135,0.00041721,2]
[321076820,1711881051048,-310.81987138,0.00041725,2]
[321076821,1711881051058,-760.8434237,0.00041725,2]
[321076822,1711881051068,-760.8434237,0.00041726,2]
[321076823,1711881051078,-1168.69207135,0.00041727,2]
[321076824,1711881051088,-676.14164172,0.00041728,2]
[321076825,1711881051097,-157.591198,0.00041728,40]
[321076826,1711881051107,-34873.91186333,0.0004173,2]
[321076827,1711881170038,2000.0,0.0003106,2]
[321076828,1711881170059,2000.0,0.0003106,2]
[321076829,1711881170079,2000.0,0.0003106,2]
[321076830,1711881170100,183.7969,0.0003106,2]
[321076831,1711881215869,169.05,0.00031141,2]
[321076832,1711881222264,1647.1531,0.0003106,4]
[321076833,1711881222287,2000.0,0.0003106,4]
[321076834,1711881231441,157.591198,0.00041696,40]
[321076835,1711881232030,157.591198,0.00041696,40]
[321076836,1711881232624,157.591198,0.00041696,40]
[321076837,1711881233813,157.591198,0.00041696,40]
[321076838,1711881234967,157.591198,0.00041696,40]
[321076839,1711881235510,157.591198,0.00041696,40]
[321076840,1711881262787,643.0,0.00041696,30]
[321076841,1711881344254,801.0,0.00041696,30]
[321076842,1711881464318,187.0,0.00041712,30]
[321076843,1711881464951,187.0,0.00041712,30]
[321076844,1711881767100,223.93,0.00029896,2]
[321076845,1711881831290,157.591198,0.00041715,40]
[321076846,1711881831846,157.591198,0.00041715,40]
[321076847,1711881833910,157.591198,0.00041715,40]
[321076848,1711881877828,59274.92402594,0.00029896,2]
[321076849,1711881877859,861660.56752187,0.00029896,2]
[321076850,1711881879602,150.0,0.0002988,2]
[321076851,1711882024886,7867.63496489,0.00029992,2]
[321076867,1711882065696,187.0,0.00041715,30]
[321076868,1711882130125,219.00197946,0.00029986,2]
[321076887,1711882233038,-547.16350628,0.00030077,2]
[321076888,1711882233049,-201.8400105,0.00030078,4]
[321076889,1711882233061,-345.59727118,0.00030079,4]
[321076890,1711882233072,-253.75323981,0.00030079,4]
[321076891,1711882233082,-155.0,0.0003008,4]
[321076892,1711882233094,-496.29675969,0.000303,2]
[321076893,1711882233106,-2142.64594245,0.000303,2]
[321076894,1711882233116,-150.0,0.00032658,2]
[321076895,1711882233125,-619.61,0.00032672,2]
[321076896,1711882233135,-150.0,0.00032873,3]
[321076897,1711882233144,-156.03890616,0.00032874,4]
[321076898,1711882233155,-1182.1,0.00032874,2]
[321076899,1711882233164,-150.99,0.00032874,2]
[321076900,1711882233173,-224.59129863,0.00032874,15]
[321076901,1711882233186,-1099.33301702,0.00032874,15]
[321076902,1711882233198,-447.04568435,0.00032874,15]
[321076903,1711882233207,-122.59107347,0.00032874,2]
[321076904,1711882233219,-450.61892653,0.00032874,2]
[321076905,1711882233229,-395.46801795,0.00032874,2]
[321076906,1711882233259,-104.52198205,0.00032874,2]
[321076907,1711882233269,-3805.0,0.000329,2]
[321076908,1711882233278,-350.0,0.00033,3]
[321076909,1711882233287,-150.0,0.00034548,10]
[321076910,1711882233298,-400.0,0.00035,3]
[321076911,1711882233307,-254.0,0.000352,3]
[321076912,1711882233316,-491.41,0.00035234,2]
[321076913,1711882233325,-210.0,0.00036161,3]
[321076914,1711882233335,-500.0,0.00036774,2]
[321076915,1711882233346,-1697.37,0.00036783,2]
[321076916,1711882233355,-63.19822931,0.00036798,2]
[321076917,1711882233367,-186.80177069,0.00036798,2]
[321076918,1711882233376,-489.69,0.00036817,2]
[321076919,1711882233386,-258.48,0.00036838,2]
[321076920,1711882233396,-10701.55,0.00036902,2]
[321076921,1711882233405,-500.0,0.00036921,2]
[321076923,1711882233415,-643.85,0.0003693,2]
[321076925,1711882233425,-150.0,0.00036938,2]
[321076927,1711882233435,-3086.16,0.00036946,2]
[321076929,1711882233444,-385.61,0.00036951,2]
[321076931,1711882233453,-300.51,0.00036953,2]
[321076933,1711882233462,-22393.22918156,0.0003696,2]
[321076935,1711882233474,-1188.16700002,0.0003696,2]
[321076937,1711882233486,-298.60381842,0.0003696,2]
[321076940,1711882233495,-8206.06,0.00036971,2]
[321076942,1711882233505,-478.16615739,0.00036984,4]
[321076944,1711882233516,-234.44802968,0.00036984,4]
[321076945,1711882233525,-450.0,0.00037,3]
[321076946,1711882233535,-133.22526273,0.00037028,2]
[321076947,1711882233590,-80.33473727,0.00037028,2]
[321076948,1711882233599,-777.46986692,0.00037041,2]
[321076949,1711882233611,-470.66422877,0.00037041,2]
[321076950,1711882233622,-1121.04454154,0.00037041,2]
[321076951,1711882233633,-821.59785975,0.00037041,2]
[321076952,1711882233645,-324.10000261,0.00037041,2]
[321076953,1711882233658,-2774.93350041,0.00037041,2]
[321076954,1711882233667,-520.27186426,0.00037088,2]
[321076955,1711882233684,-8787.84813574,0.00037088,2]
[321076956,1711882233693,-5957.31,0.00037112,2]
[321076957,1711882233702,-272.15,0.00037242,2]
[321076958,1711882233711,-250.0,0.00037266,2]
[321076959,1711882233720,-1378.27,0.00037266,2]
[321076960,1711882233729,-279.99593359,0.00037322,2]
[321076961,1711882233741,-220.00406641,0.00037322,2]
[321076962,1711882233750,-909.24128653,0.0003734,2]
[321076963,1711882233765,-367.58871347,0.0003734,2]
[321076964,1711882233774,-200.0,0.00037465,2]
[321076965,1711882233784,-374.07535334,0.00037498,2]
[321076966,1711882233796,-117.33464666,0.00037498,2]
[321076967,1711882233805,-200.0,0.00037549,2]
[321076968,1711882233814,-472.15,0.0003757,2]
[321076969,1711882233824,-6213.19275334,0.00037649,2]
[321076970,1711882233835,-318.4,0.00037649,2]
[321076971,1711882233846,-399.52449624,0.00037649,2]
[321076972,1711882233857,-455.94522447,0.00037649,2]
[321076973,1711882233869,-2373.28864954,0.00037649,2]
[321076974,1711882233878,-472.15,0.00037673,2]
[321076975,1711882233887,-472.15,0.00037776,2]
[321076976,1711882233896,-472.15,0.00037879,2]
[321076977,1711882233905,-605.02,0.00037943,2]
[321076978,1711882233914,-605.02,0.00037953,2]
[321076979,1711882233923,-605.02,0.00037963,2]
[321076980,1711882233932,-605.02,0.00037973,2]
[321076981,1711882233941,-472.15,0.00037982,2]
[321076982,1711882233951,-605.02,0.00037983,2]
[321076983,1711882233960,-605.02,0.00037993,2]
[321076984,1711882233969,-605.02,0.00038003,2]
[321076985,1711882233978,-605.02,0.00038013,2]
[321076986,1711882233987,-605.02,0.00038023,2]
[321076987,1711882233996,-152.35,0.00038027,15]
[321076988,1711882234005,-605.02,0.00038033,2]
[321076989,1711882234017,-605.02,0.00038043,2]
[321076990,1711882234026,-605.02,0.00038053,2]
[321076991,1711882234036,-605.02,0.00038063,2]
[321076992,1711882234046,-605.02,0.00038073,2]
[321076993,1711882234055,-605.02,0.00038083,2]
[321076994,1711882234065,-472.15,0.00038085,2]
[321076995,1711882234075,-605.02,0.00038093,2]
[321076996,1711882234084,-605.02,0.00038103,2]
[321076997,1711882234092,-605.02,0.00038112,2]
[321076998,1711882234101,-605.02,0.00038122,2]
[321076999,1711882234110,-605.02,0.00038132,2]
[321077000,1711882234121,-472.15,0.00038188,2]
[321077001,1711882234132,-288.1832685,0.00038193,4]
[321077002,1711882234141,-472.15,0.00038291,2]
[321077003,1711882234150,-472.15,0.00038394,2]
[321077004,1711882234159,-472.15,0.00038497,2]
[321077005,1711882234169,-472.15,0.000386,2]
[321077006,1711882234178,-472.15,0.00038703,2]
[321077007,1711882234187,-4166.49,0.00038722,2]
[321077008,1711882234196,-472.15,0.00038806,2]
[321077009,1711882234205,-472.15,0.0003891,2]
[321077010,1711882234214,-500.0,0.00039,3]
[321077011,1711882234224,-472.15,0.00039013,2]
[321077012,1711882234235,-1000.0,0.00039025,2]
[321077013,1711882234245,-472.15,0.00039116,2]
[321077014,1711882234254,-472.15,0.00039219,2]
[321077015,1711882234264,-472.15,0.00039322,2]
[321077016,1711882234273,-472.15,0.00039425,2]
[321077017,1711882234283,-472.15,0.00039528,2]
[321077018,1711882234292,-491.41,0.00039762,2]
[321077019,1711882234301,-293.0,0.00039777,5]
[321077020,1711882234310,-2154.71988802,0.00039828,2]
[321077021,1711882236190,1000.0,0.0003,3]
[321077023,1711882238071,-7153.40011198,0.00039828,2]
[321077025,1711882238081,-223.0,0.0004,2]
[321077026,1711882238090,-162.44496167,0.00040493,30]
[321077027,1711882238100,-180.0,0.00040641,2]
[321077028,1711882238109,-4060.71878157,0.00040688,2]
[321077029,1711882238118,-169.72,0.00040723,2]
[321077030,1711882238128,-1264.82,0.00040739,2]
[321077031,1711882238137,-209.01652617,0.00040888,4]
[321077032,1711882238146,-154.2895035,0.00040897,30]
[321077033,1711882238156,-2450.07517768,0.00040985,2]
[321077034,1711882238165,-1228.99735601,0.00040995,2]
[321077035,1711882238174,-1696.9071,0.00040995,2]
[321077036,1711882238183,-550.0,0.00041,3]
[321077037,1711882238193,-158.81,0.00041021,2]
[321077038,1711882238202,-6122.51139352,0.00041056,4]
[321077039,1711882238212,-142.46784061,0.00041085,2]
[321077040,1711882238337,-1122.35215939,0.00041085,2]
[321077041,1711882238346,-1147.74079469,0.00041085,2]
[321077042,1711882238359,-117.07920531,0.00041085,2]
[321077043,1711882238369,-163.17,0.00041085,2]
[321077044,1711882238378,-193.15319483,0.00041089,2]
[321077045,1711882238387,-458.0,0.00041092,2]
[321077046,1711882238397,-1253.0,0.00041092,2]
[321077047,1711882238406,-538.0,0.00041092,2]
[321077048,1711882238416,-150.0,0.00041092,2]
[321077049,1711882238425,-151.382,0.00041092,2]
[321077050,1711882238434,-200.0,0.00041093,2]
[321077051,1711882238443,-481.18964652,0.00041093,4]
[321077059,1711882240416,-425.23285784,0.00041093,4]
[321077060,1711882240425,-296.75056969,0.00041093,4]
[321077075,1711882246229,-53.60576846,0.00041093,4]
[321077076,1711882246239,-526.08690352,0.00041093,4]
[321077077,1711882269855,686679.85898816,0.00025,2]
[321077078,1711882271613,295.41221015,0.00029986,2]
[321077079,1711882272374,999.999999,0.00041701,120]
[321077080,1711882273885,2098.39242868,0.00041701,120]
[321077081,1711882275236,692.75564886,0.00041701,30]
[321077082,1711882277476,158.34642619,0.00041701,30]
[321077083,1711882277920,3784.4617649,0.00041701,30]
[321077084,1711882278430,2587.20800307,0.00041701,120]
[321077085,1711882282131,1946.58360801,0.00041701,120]
[321077086,1711882283115,829.93425844,0.00041701,30]
[321077087,1711882284442,1104.56233826,0.00041701,120]
[321077088,1711882284713,1708.82588513,0.00041701,30]
[321077089,1711882288026,1343.13286677,0.00041701,30]
[321077090,1711882289407,2860.28430547,0.00041701,30]
[321077091,1711882290046,1172.07991473,0.00041701,30]
[321077093,1711882293048,608.4947693,0.00041701,120]
[321077094,1711882295432,3106.16782692,0.00041701,30]
[321077095,1711882298621,560.77130145,0.00041701,120]
[321077096,1711882302200,337.20938043,0.00041701,120]
[321077097,1711882303112,1528.46712992,0.00041701,30]
[321077098,1711882306087,2293.54112594,0.00041701,120]
[321077099,1711882314394,648.13093014,0.00041701,120]
[321077100,1711882319721,382.29500759,0.00041701,30]
[321077101,1711882324121,1102.63951767,0.00041701,120]
[321077102,1711882326448,612.84693703,0.00041701,120]
[321077103,1711882327891,1406.07569839,0.00021,2]
[321077104,1711882328346,871.28976295,0.00041701,30]
[321077105,1711882329949,207.44344549,0.00041701,60]
[321077107,1711882334659,369.16369286,0.00041701,120]
[321077108,1711882339617,1009.20005152,0.00041701,30]
[321077109,1711882351957,2900.0,0.000225,15]
[321077110,1711882355806,510.04919487,0.00041701,30]
[321077111,1711882388374,32925.6723463,0.000225,2]
[321077112,1711882401809,319.01715969,0.00041701,30]
[321077113,1711882410395,1333.60912006,0.00041701,120]
[321077117,1711882412879,738.32113089,0.00041701,120]
[321077118,1711882417514,1588.40771096,0.00041701,30]
[321077119,1711882418135,596.28105868,0.00041701,30]
[321077120,1711882423768,231.3031242,0.00041701,120]
[321077121,1711882424703,151.41457543,0.00041701,30]
[321077122,1711882425239,207.93878978,0.00041701,120]
[321077123,1711882426214,538.3567145,0.00041701,120]
[321077124,1711882428147,245.34806202,0.00041701,30]
[321077125,1711882430748,851.59809623,0.00041701,120]
[321077126,1711882431312,1511.46249283,0.00041701,120]
[321077127,1711882433940,157.591198,0.00041701,40]
[321077128,1711882434773,157.591198,0.00041701,40]
[321077129,1711882436842,157.591198,0.00041701,40]
[321077130,1711882437263,3678.35048838,0.00025,4]
[321077131,1711882442198,396.68003468,0.00041701,30]
[321077132,1711882467174,928.11219902,0.00041701,120]
[321077133,1711882469887,1352.8185946,0.00041701,120]
[321077134,1711882470234,238.20121475,0.00022,2]
[321077135,1711882471061,266.26009635,0.00041701,120]
[321077136,1711882471143,823.47237483,0.00041701,30]
[321077137,1711882471546,654.73423222,0.00041701,30]
[321077138,1711882473036,890.73734666,0.00041701,120]
[321077139,1711882473207,457.56688054,0.00041701,30]
[321077140,1711882473297,458.54297932,0.00041701,120]
[321077141,1711882473387,481.43041887,0.00041701,30]
[321077142,1711882473712,26758.16234187,0.00025,7]
[321077143,1711882474034,244.85919987,0.00041701,120]
[321077144,1711882474144,1052.1321957,0.00022,2]
[321077145,1711882474249,190.37118663,0.00041701,30]
[321077146,1711882474861,893.24415276,0.00041701,120]
[321077147,1711882474968,2000.0,0.0003,14]
[321077148,1711882475032,2232.56365235,0.00041701,120]
[321077149,1711882475852,474.44486953,0.00041701,30]
[321077150,1711882476729,408.59012212,0.00041701,30]
[321077151,1711882476855,756.0,0.00041701,120]
[321077152,1711882477651,845.12122153,0.00041701,120]
[321077153,1711882477851,651.09119633,0.00041701,120]
[321077157,1711882679875,315.0,0.000417,30]
[321077159,1711882962844,212.0,0.00042007,120]
[321077160,1711883029658,157.591198,0.00042032,40]
[321077161,1711883117147,248.6116036,0.00042032,30]
[321077166,1711883268077,169.05,0.00028967,2]
[321077167,1711883312698,119.56270118,0.00028967,2]
[321077168,1711883312719,150.0,0.00028967,2]
[321077169,1711883312740,762.5583115,0.00028967,2]
[321077170,1711883314800,939.29437694,0.00028967,2]
[321077171,1711883314870,1465.71922469,0.00028967,2]
[321077172,1711883319853,265.28655298,0.00028967,2]
[321077173,1711883319874,19330.65001511,0.00028967,2]
[321077174,1711883324090,77931.77807176,0.00028967,2]
[321077175,1711883324121,843003.71347605,0.00028967,2]
[321077176,1711883326690,1029.5228811,0.00028967,2]
[321077177,1711883330812,939.29437694,0.00028967,2]
[321077178,1711883334883,1038.44877331,0.00028967,2]